bitfinex/quotes_ETHUSD_20250616
["timestamp","ask_amount","ask_price","bid_price","bid_amount"]
[1750081085114,0.55,2618.0,2617.9,3.8198556]
[1750081085277,10.55,2618.0,2617.8,1.857]
[1750081085614,0.55,2618.0,2617.8,1.857]
[1750081085773,0.55,2618.0,2617.8,5.67689945]
[1750081086312,1.3006,2617.9,2617.6,6.629]
[1750081086520,1.3006,2617.9,2617.7,3.82000332]
[1750081086743,1.3006,2617.9,2617.6,3.82028777]
[1750081086744,0.7404,2617.7,2617.6,3.82028777]
[1750081087043,0.55,2617.6,2617.5,1.857]
[1750081087261,0.55,2617.8,2617.1,11.006]
[1750081087457,0.55,2617.3,2617.2,3.82073743]
[1750081087982,0.55,2617.3,2617.1,23.3070014]
[1750081087983,0.1904,2617.2,2617.1,16.68402327]
[1750081088265,0.1904,2617.2,2617.1,23.30802327]
[1750081088839,0.7404,2617.2,2616.7,0.8231]
[1750081089042,0.7404,2617.2,2616.9,3.82131529]
[1750081089043,0.55,2617.1,2616.9,3.82131529]
[1750081089243,0.55,2617.1,2616.7,8.479]
[1750081089444,10.55,2617.1,2616.9,3.82121064]
[1750081089752,0.7404,2617.2,2617.1,3.82102327]
[1750081090053,4.37131529,2616.9,2616.3,0.8219]
[1750081090258,10.55,2616.9,2616.3,3.82219164]
[1750081090460,10.55,2616.7,2616.3,3.82219164]
[1750081090662,0.55,2616.7,2616.6,3.82160775]
[1750081090810,0.55,2617.1,2616.6,0.0382134]
[1750081091005,1.67444161,2617.1,2616.5,12.30387855]
[1750081091212,0.55,2616.8,2616.6,3.82169495]
[1750081091522,10.0,2617.0,2616.5,1.857]
[1750081091523,0.55,2616.9,2616.7,3.82153695]
[1750081091797,0.55,2616.9,2616.8,3.82146132]
[1750081091964,0.55,2616.9,2616.5,8.483]
[1750081091965,0.55,2616.8,2616.6,3.82173644]
[1750081092166,0.76367603,2616.8,2616.6,3.82173644]
[1750081092382,0.55,2616.9,2616.5,1.857]
[1750081092663,10.55,2616.7,2616.5,1.857]
[1750081092866,0.55,2616.6,2616.2,3.82233124]
[1750081093083,0.55,2616.6,2616.1,0.02]
[1750081093084,1.67386005,2616.6,2616.5,3.82189948]
[1750081093212,0.7604,2617.1,2616.8,3.82133395]
[1750081093406,0.55,2617.0,2616.9,3.82123834]
[1750081093612,0.91025949,2617.3,2616.9,3.82123834]
[1750081093859,30.0,2617.4,2616.6,12.31961949]
[1750081094059,10.7634081,2617.3,2616.8,3.82146132]
[1750081094217,10.7634081,2617.3,2617.1,3.82097552]
[1750081094218,10.0,2617.3,2617.1,3.82097552]
[1750081094407,10.0,2617.2,2617.1,3.82097552]
[1750081094611,10.55,2617.2,2617.1,3.82097552]
[1750081095052,10.0,2617.1,2617.0,3.82108981]
[1750081095234,0.55,2617.1,2616.9,3.82125016]
[1750081095437,10.8326,2617.5,2616.9,3.82125016]
[1750081095438,0.55,2617.0,2616.9,3.82131529]
[1750081095652,10.55,2617.2,2617.0,3.82116625]
[1750081095958,1.67406676,2617.2,2617.1,3.82102327]
[1750081096262,0.55,2617.2,2617.1,3.82102327]
[1750081096428,3.82098057,2617.2,2616.7,3.82158923]
[1750081096762,0.55,2616.9,2616.7,3.82159178]
[1750081096916,0.55,2616.9,2616.6,1.858]
[1750081096917,10.55,2616.9,2616.6,1.858]
[1750081097121,0.55,2616.7,2616.6,1.858]
[1750081097352,30.55,2616.6,2616.2,3.8222361]
[1750081097553,1.367,2616.4,2616.1,5.70041614]
[1750081097755,10.55,2616.2,2616.1,0.02]
[1750081097926,0.55,2616.2,2616.1,0.02]
[1750081098265,46.83015611,2616.2,2616.1,0.02]
[1750081098446,47.9539257,2616.2,2616.1,0.02]
[1750081098859,48.74923706,2616.2,2616.1,0.02]
[1750081099412,48.74924867,2616.2,2616.1,0.02]
[1750081099522,48.53602772,2616.2,2616.1,0.02]
[1750081100143,48.74921374,2616.2,2616.1,0.02]
[1750081100371,48.7488613,2616.2,2616.1,0.02]
[1750081100678,49.12617577,2616.2,2616.1,0.02]
[1750081100839,49.12617136,2616.2,2616.1,0.02]
[1750081101236,49.12617488,2616.2,2616.1,0.02]
[1750081101437,49.12617497,2616.2,2616.1,0.02]
[1750081101638,49.12617789,2616.2,2616.1,0.02]
[1750081102575,0.55,2615.2,2615.1,1.878]
[1750081102928,14.37379932,2615.2,2615.1,1.878]
[1750081103142,10.55,2615.2,2615.1,1.878]
[1750081103676,14.97601148,2615.2,2615.1,0.02]
[1750081104048,44.97601148,2615.2,2615.1,0.02]
[1750081104228,51.60401148,2615.2,2615.1,0.02]
[1750081104469,52.43491148,2615.2,2615.1,0.02]
[1750081104776,52.64730083,2615.2,2615.1,0.02]
[1750081104977,53.34059744,2615.2,2615.1,0.02]
[1750081105279,53.55299924,2615.2,2615.1,0.02]
[1750081105457,35.1319231,2614.5,2614.1,0.02]
[1750081105796,54.52133322,2614.2,2614.1,0.02]
[1750081105957,61.15533322,2614.2,2614.1,0.02]
[1750081106298,10.0,2613.7,2613.2,5.6716578]
[1750081106426,0.55,2613.3,2613.2,1.845]
[1750081106761,0.55,2613.5,2613.1,0.02]
[1750081106925,0.55,2613.3,2613.1,0.02]
[1750081107120,0.55,2613.2,2613.1,0.02]
[1750081107572,40.0,2613.4,2613.1,3.84687229]
[1750081107866,0.55,2613.3,2613.2,3.82672585]
[1750081108082,10.0,2613.8,2613.2,3.82672585]
[1750081108083,0.55,2613.4,2613.3,3.82648458]
[1750081108282,10.55,2613.7,2613.1,1.865]
[1750081108451,0.7412,2613.2,2613.1,1.865]
[1750081108764,0.7412,2613.2,2613.1,5.69187229]
[1750081110858,0.7412,2613.2,2613.1,5.73013644]
[1750081111270,0.7412,2613.2,2613.1,5.69187229]
[1750081112693,16.624,2613.9,2613.6,3.82612195]
[1750081112840,0.55,2613.8,2613.4,3.82632881]
[1750081113036,0.55,2613.6,2613.4,3.82634826]
[1750081113259,0.55,2613.6,2613.5,3.82628658]
[1750081113458,0.55,2613.8,2613.7,3.82596897]
[1750081113791,0.77124,2613.8,2613.6,3.82609233]
[1750081113972,0.77124,2613.8,2613.5,3.82615999]
[1750081113973,0.1912,2613.6,2613.5,3.82615999]
[1750081114140,0.1912,2613.6,2613.5,3.82628658]
[1750081114341,0.1912,2613.6,2613.4,3.82643269]
[1750081114555,0.77124,2613.8,2613.5,3.82628051]
[1750081114774,0.77124,2613.8,2613.6,3.82604804]
[1750081114958,10.77124,2613.8,2613.7,3.8259938]
[1750081115304,10.0,2613.8,2613.7,3.8259938]
[1750081115863,10.55,2613.8,2613.7,3.8259938]
[1750081116278,0.8093,2614.5,2614.2,3.82521449]
[1750081116492,0.1912,2614.0,2613.9,3.82570105]
[1750081116687,0.8282,2614.9,2614.6,3.8245908]
[1750081116867,0.1912,2614.2,2614.1,3.82540836]
[1750081117238,0.8282,2614.9,2614.6,3.82460722]
[1750081117441,0.1912,2614.6,2614.1,3.82531978]
[1750081117657,0.1912,2614.4,2614.0,0.7545]
[1750081117977,0.1912,2614.4,2614.3,3.8251157]
[1750081118187,0.1912,2614.4,2614.3,5.6711157]
[1750081118405,0.828,2615.3,2614.8,3.82429904]
[1750081118557,0.55,2615.1,2614.8,3.82430495]
[1750081118758,10.0,2615.1,2614.8,3.82431461]
[1750081118965,30.0,2615.2,2614.8,3.82429797]
[1750081118966,30.55,2615.2,2614.8,3.82429797]
[1750081119294,40.0,2615.2,2614.8,3.82429797]
[1750081119498,30.0,2615.0,2614.6,3.82461951]
[1750081119675,0.55,2614.7,2614.6,3.82464703]
[1750081119996,0.55,2615.1,2615.0,3.82401883]
[1750081120199,10.0,2615.2,2614.6,0.03824241]
[1750081120399,10.0,2614.9,2614.6,3.82463265]
[1750081120731,13.75401773,2614.9,2614.4,1.846]
[1750081121021,13.75401773,2614.9,2614.3,1.846]
[1750081121022,0.55,2614.5,2614.3,1.846]
[1750081121313,0.55,2614.3,2613.8,1.846]
[1750081121457,10.55,2614.1,2614.0,3.8255547]
[1750081121660,0.55,2614.1,2614.0,3.8255547]
[1750081121858,0.55,2614.4,2614.1,3.82532638]
[1750081122090,0.55,2614.1,2614.0,3.8255547]
[1750081122574,0.55,2614.2,2614.0,3.8255547]
[1750081122761,10.55,2614.2,2613.8,1.846]
[1750081123085,10.55,2614.2,2613.9,3.82570105]
[1750081123086,0.55,2614.0,2613.9,3.82570105]
[1750081123404,1.605,2614.3,2614.2,3.82526203]
[1750081123705,0.55,2614.3,2614.1,3.82530751]
[1750081123997,0.55,2614.3,2614.0,3.82545027]
[1750081124204,0.55,2614.3,2614.1,3.82538298]
[1750081124386,0.55,2614.3,2614.1,3.82535589]
[1750081124614,0.55,2614.3,2614.0,3.82547147]
[1750081124811,0.55,2614.3,2613.7,11.023]
[1750081124812,0.55,2614.0,2613.7,11.023]
[1750081124957,0.55,2614.0,2613.2,5.67262622]
[1750081124958,10.55,2613.9,2613.2,5.67262622]
[1750081125286,0.55,2613.7,2613.5,3.82628292]
[1750081125597,0.55,2613.7,2613.4,3.82640177]
[1750081125801,0.55,2613.7,2613.3,3.82651534]
[1750081126004,0.55,2613.4,2613.3,3.82649962]
[1750081126165,0.55,2613.4,2613.1,0.02]
[1750081126364,0.55,2613.2,2613.1,0.02]
[1750081126599,0.55,2613.2,2613.1,3.84687229]
[1750081127299,0.55,2613.4,2613.3,3.82657942]
[1750081127516,10.55,2613.3,2613.1,0.02]
[1750081127719,0.55,2613.3,2613.1,0.02]
[1750081127877,10.55,2613.5,2613.1,3.84680701]
[1750081128201,0.55,2613.2,2613.1,3.84680701]
[1750081128376,0.55,2613.3,2613.2,3.82672585]
[1750081128705,0.55,2613.5,2613.1,0.02]
[1750081128905,10.0,2613.2,2613.1,0.02]
[1750081129107,11.67376359,2613.2,2613.1,0.02]
[1750081129266,12.31352877,2613.2,2613.1,0.02]
[1750081129468,2.31342294,2613.2,2613.1,0.02]
[1750081129711,2.10004328,2613.2,2613.1,0.02]
[1750081130002,6.74696913,2613.2,2613.1,0.02]
[1750081130204,16.74696913,2613.2,2613.1,0.02]
[1750081130417,17.87089492,2613.2,2613.1,0.02]
[1750081130772,17.65724723,2613.2,2613.1,0.02]
[1750081131073,17.87089745,2613.2,2613.1,0.02]
[1750081131272,47.87089745,2613.2,2613.1,0.02]
[1750081131472,57.25986864,2613.2,2613.1,0.02]
[1750081131668,57.25978501,2613.2,2613.1,0.02]
[1750081131868,58.76318495,2613.2,2613.1,0.02]
[1750081132170,10.55,2612.9,2612.6,12.87]
[1750081132368,0.55,2612.7,2612.6,1.847]
[1750081132581,0.55,2612.8,2612.6,1.847]
[1750081132780,30.0,2613.2,2612.8,3.82731169]
[1750081133001,1.12384422,2613.1,2612.9,3.82708058]
[1750081133220,30.55,2613.2,2613.0,3.82698203]
[1750081133425,0.55,2613.0,2612.9,3.82709687]
[1750081133729,10.21356612,2613.1,2613.0,3.82701875]
[1750081133899,10.76356612,2613.1,2613.0,3.82701875]
[1750081134440,0.21370562,2613.1,2613.0,3.82701875]
[1750081134601,0.21370562,2613.1,2612.9,3.82713944]
[1750081134602,13.42498366,2613.5,2613.2,3.82662063]
[1750081134798,0.1912,2613.2,2613.1,3.82687229]
[1750081135116,0.1912,2613.2,2613.1,3.86513664]
[1750081135278,0.21369285,2613.5,2613.4,3.82643299]
[1750081135279,0.1912,2613.5,2613.4,3.82643299]
[1750081136136,0.1912,2613.5,2613.3,3.82645177]
[1750081136351,40.0,2613.3,2613.2,3.82672585]
[1750081136498,40.0,2613.3,2613.1,3.82687229]
[1750081136499,0.55,2613.2,2613.1,3.82687229]
[1750081136901,0.76372457,2613.2,2613.1,3.82687229]
[1750081137196,0.1912,2613.5,2613.4,3.82643299]
[1750081137409,0.1912,2613.5,2613.3,0.7991]
[1750081137410,0.6667,2613.6,2613.5,3.82628658]
[1750081137610,1.2167,2613.6,2613.5,3.82628658]
[1750081138507,0.6667,2613.6,2613.5,3.82628658]
[1750081138710,1.2167,2613.6,2613.5,3.82628658]
[1750081138913,0.6667,2613.6,2613.5,3.82628658]
[1750081139111,0.6667,2613.6,2613.5,11.43889212]
[1750081139316,0.6667,2613.6,2613.5,12.24579212]
[1750081139811,0.6667,2613.6,2613.5,5.66379212]
[1750081139987,0.6667,2613.6,2613.5,14.06379212]
[1750081140887,0.6667,2613.6,2613.5,5.66379212]
[1750081141088,1.2167,2613.6,2613.5,13.07243993]
[1750081141291,1.2167,2613.6,2613.5,13.03418658]
[1750081142434,0.6667,2613.6,2613.5,13.03418658]
[1750081143202,0.6667,2613.6,2613.5,23.03418658]
[1750081143938,0.6667,2613.6,2613.5,13.03118658]
[1750081144300,0.6667,2613.6,2613.5,15.65584311]
[1750081144826,0.6667,2613.6,2613.5,15.65684311]
[1750081145022,0.6667,2613.6,2613.5,7.25784311]
[1750081145238,0.6667,2613.6,2613.5,13.02918658]
[1750081146002,0.6667,2613.9,2613.8,4.58574742]
[1750081146202,0.6667,2613.9,2613.8,4.77694742]
[1750081146418,0.6667,2613.9,2613.8,13.17294742]
[1750081147300,0.6667,2613.9,2613.8,6.59294742]
[1750081147639,0.6667,2613.9,2613.8,12.98374742]
[1750081147939,0.6667,2613.9,2613.8,4.58574742]
[1750081148123,0.6667,2613.9,2613.8,13.8822931]
[1750081148314,0.6667,2613.9,2613.8,13.8440393]
[1750081148911,0.6667,2613.9,2613.8,14.0352393]
[1750081151031,0.6667,2613.9,2613.8,14.0312393]
[1750081151212,0.6667,2613.9,2613.8,5.64184742]
[1750081151414,0.6667,2613.9,2613.8,12.21884742]
[1750081151623,1.2167,2613.9,2613.8,3.82584742]
[1750081151835,0.7412,2613.8,2613.7,1.816]
[1750081152413,41.5443,2613.8,2613.4,6.58]
[1750081152645,0.55,2613.4,2613.3,10.40450011]
[1750081152844,0.55,2613.6,2613.3,10.40455294]
[1750081153054,4.37601278,2613.7,2613.3,6.578]
[1750081153219,0.55,2613.7,2613.3,6.578]
[1750081153421,0.55,2613.7,2613.4,3.82636553]
[1750081153811,0.55,2613.7,2613.3,6.578]
[1750081154134,0.1912,2613.4,2613.3,10.40452811]
[1750081155116,0.6667,2613.9,2613.8,3.82584742]
[1750081155431,0.6667,2613.9,2613.8,13.03944742]
[1750081155627,0.6667,2613.9,2613.8,13.23064742]
[1750081155851,0.02,2614.9,2614.8,3.82438427]
[1750081156048,0.02,2614.9,2614.8,12.26162344]
[1750081156248,0.57,2614.9,2614.8,12.22338427]
[1750081156649,0.02,2614.9,2614.8,12.22338427]
[1750081157053,0.57,2614.9,2614.8,12.22338427]
[1750081158224,0.02,2614.9,2614.8,12.22338427]
[1750081158428,0.02,2614.9,2614.8,13.91086575]
[1750081161573,0.02,2614.9,2614.8,12.20738427]
[1750081162655,0.02,2614.9,2614.8,12.39858427]
[1750081165734,0.02,2614.9,2614.8,4.01558427]
[1750081166081,0.02,2614.9,2614.8,12.18638427]
[1750081166457,0.02,2614.9,2614.8,12.37758427]
[1750081166657,0.02,2614.9,2614.8,14.08048575]
[1750081167682,0.02,2614.9,2614.8,14.84878575]
[1750081168583,0.02,2614.9,2614.8,24.84878575]
[1750081168794,0.02,2615.9,2615.8,4.64122224]
[1750081168944,0.02,2615.9,2615.8,13.0394403]
[1750081169145,0.02,2615.9,2615.8,15.97987075]
[1750081169754,0.02,2615.9,2615.8,12.38032224]
[1750081169984,0.02,2615.9,2615.8,12.18992224]
[1750081171389,0.02,2615.9,2615.8,3.82292224]
[1750081171589,0.02,2615.9,2615.8,12.23214687]
[1750081171746,0.02,2615.9,2615.8,12.19392224]
[1750081172092,0.02,2615.9,2615.8,15.84471894]
[1750081173288,0.02,2615.9,2615.8,25.84471894]
[1750081173660,0.02,2616.9,2616.8,4.58996132]
[1750081173891,0.02,2616.9,2616.8,13.15236132]
[1750081175775,0.02,2616.9,2616.8,4.78036132]
[1750081175980,0.02,2616.9,2616.8,3.82146132]
[1750081176164,0.02,2616.9,2616.4,0.8244]
[1750081176364,0.02,2616.9,2616.7,3.8215662]
[1750081176365,0.7404,2616.8,2616.7,3.8215662]
[1750081176555,0.7404,2616.8,2616.5,8.365]
[1750081176556,0.55,2616.7,2616.5,8.365]
[1750081176752,0.55,2616.7,2616.6,3.82175342]
[1750081176952,0.55,2616.7,2616.6,8.366]
[1750081176953,1.607,2616.7,2616.6,8.366]
[1750081177192,2.3785,2616.7,2616.6,8.366]
[1750081177390,1.3215,2616.7,2616.6,8.366]
[1750081177591,1.3215,2616.7,2616.6,1.801]
[1750081177897,1.3215,2616.7,2616.6,8.365]
[1750081178200,0.55,2616.7,2616.6,12.18675342]
[1750081179590,0.02,2616.9,2616.8,3.82146132]
[1750081179818,0.02,2616.9,2616.8,10.38646132]
[1750081180868,0.02,2616.9,2616.8,10.38346132]
[1750081182506,0.02,2616.9,2616.8,11.01689917]
[1750081182877,0.02,2616.9,2616.8,12.18146132]
[1750081183413,0.57,2616.9,2616.8,12.18146132]
[1750081183869,0.57,2616.9,2616.8,8.359]
[1750081184072,0.7814,2616.9,2616.8,8.359]
[1750081184267,0.7404,2616.8,2616.4,3.82203358]
[1750081184470,11.3691,2616.5,2616.4,1.8]
[1750081185087,5.19099948,2616.5,2616.4,1.8]
[1750081185303,1.3691,2616.5,2616.4,1.8]
[1750081185602,15.40390077,2616.5,2616.4,1.8]
[1750081185781,15.19099948,2616.5,2616.4,1.8]
[1750081186001,47.14570847,2616.5,2616.4,1.8]
[1750081186173,47.35871637,2616.5,2616.4,1.8]
[1750081186368,13.32380899,2616.5,2616.4,1.8]
[1750081186605,13.32380899,2616.5,2616.4,5.62204555]
[1750081186774,13.32380899,2616.5,2616.4,12.17404555]
[1750081186775,10.0,2616.5,2616.4,12.17404555]
[1750081188615,0.8195,2616.9,2616.5,3.82180876]
[1750081188616,0.02,2616.9,2616.5,3.82180876]
[1750081188785,0.02,2616.9,2616.8,3.82146132]
[1750081189107,0.57,2616.9,2616.8,10.37346132]
[1750081189512,0.57,2616.9,2616.8,6.552]
[1750081189720,0.57,2616.9,2616.8,8.35]
[1750081189919,2.0281501,2616.9,2616.8,8.35]
[1750081190486,2.0281501,2616.9,2616.8,12.17146132]
[1750081191173,0.57,2616.9,2616.8,12.17146132]
[1750081191598,0.57,2616.9,2616.8,8.35]
[1750081191812,0.57,2616.9,2616.8,12.17146132]
[1750081193313,0.57,2616.9,2616.8,8.35]
[1750081194416,0.57,2616.9,2616.2,0.1904]
[1750081194618,0.55,2616.7,2616.5,5.62177655]
[1750081194817,0.55,2616.7,2616.6,6.543]
[1750081194978,1.68645,2616.7,2616.6,6.543]
[1750081195520,0.2333983,2616.9,2616.7,3.82158024]
[1750081195686,0.7404,2616.8,2616.7,3.82158024]
[1750081195874,0.55,2616.7,2616.6,6.543]
[1750081196416,0.1904,2616.8,2616.6,10.36474761]
[1750081196630,0.8322,2616.6,2616.5,1.8]
[1750081196915,12.92161512,2616.6,2616.5,1.8]
[1750081197115,13.13544597,2616.6,2616.5,1.8]
[1750081197330,12.92161512,2616.6,2616.5,1.8]
[1750081197537,14.5623003,2616.5,2616.2,1.796]
[1750081197835,14.5623003,2616.5,2616.2,5.61833774]
[1750081197836,0.55,2616.3,2616.2,5.61833774]
[1750081198132,0.55,2616.4,2616.2,5.61833774]
[1750081198297,10.55,2616.3,2616.2,1.796]
[1750081198495,10.55,2616.3,2616.2,5.61833774]
[1750081199532,0.7404,2616.3,2616.2,5.61833774]
[1750081199900,0.1904,2616.3,2616.2,5.65655726]
[1750081200102,0.02,2616.9,2616.8,3.82146132]
[1750081200302,0.02,2616.9,2616.8,5.65667515]
[1750081201059,0.02,2616.9,2616.8,7.36032077]
[1750081201218,0.02,2616.9,2616.8,8.38152077]
[1750081201412,0.02,2616.9,2616.8,8.34330694]
[1750081202343,0.02,2616.9,2616.8,6.54630694]
[1750081202664,0.02,2616.9,2616.8,14.92351124]
[1750081202948,0.02,2616.9,2616.8,14.88530694]
[1750081203745,0.02,2616.9,2616.8,24.88530694]
[1750081205561,0.02,2617.9,2617.8,4.60370152]
[1750081205761,0.02,2617.9,2617.8,25.01966978]
[1750081205961,0.02,2617.9,2617.8,24.98148453]
[1750081207150,0.02,2617.9,2617.8,16.64648453]
[1750081207357,0.02,2617.9,2617.8,24.97848453]
[1750081207865,0.02,2617.9,2617.8,44.36745572]
[1750081210184,0.02,2618.9,2618.8,3.81854284]
[1750081210338,0.02,2618.9,2618.8,13.32029712]
[1750081210536,0.02,2618.9,2618.8,13.51069712]
[1750081211260,0.02,2618.9,2618.8,11.71469712]
[1750081211473,0.02,2618.9,2618.8,12.14954284]
[1750081212900,0.02,2618.9,2618.8,3.81854284]
[1750081213114,0.02,2618.9,2618.8,12.15254284]
[1750081213868,0.02,2618.9,2618.8,3.81854284]
[1750081214167,0.02,2618.9,2618.8,12.1917168]
[1750081214368,0.02,2618.9,2618.8,13.75458134]
[1750081215106,0.02,2618.9,2618.8,5.41958134]
[1750081215313,0.02,2618.9,2618.8,12.18871719]
[1750081215473,0.02,2618.9,2618.8,12.15054284]
[1750081216210,0.02,2618.9,2618.8,3.81854284]
[1750081216394,0.02,2618.9,2618.8,12.14754284]
[1750081217272,0.02,2618.9,2618.8,3.81854284]
[1750081217497,0.02,2618.9,2618.8,12.14554284]
[1750081217811,0.02,2618.9,2618.8,13.74196394]
[1750081218001,0.02,2618.9,2618.8,5.41496394]
[1750081218206,0.02,2618.9,2618.8,12.17971811]
[1750081218416,0.02,2618.9,2618.8,12.14154284]
[1750081218604,0.02,2618.9,2618.8,12.91614284]
[1750081218976,0.02,2618.9,2618.8,22.91614284]
[1750081219275,0.02,2619.9,2619.8,4.59508527]
[1750081219474,0.02,2619.9,2619.8,16.4393147]
[1750081219679,0.02,2619.9,2619.8,23.14408527]
[1750081219937,0.57,2619.9,2619.8,19.327]
[1750081220079,0.57,2619.9,2619.8,23.14408527]
[1750081220428,0.02,2619.9,2619.8,23.14408527]
[1750081220576,0.02,2619.9,2619.8,14.82008527]
[1750081220778,0.02,2619.9,2619.8,11.003]
[1750081220779,0.8058,2619.9,2619.8,11.003]
[1750081221032,12.87304817,2619.9,2619.7,6.539]
[1750081221231,12.87304817,2619.9,2619.0,3.81813549]
[1750081221232,0.55,2619.5,2618.6,11.001]
[1750081221382,0.55,2619.5,2619.1,3.81809651]
[1750081221383,0.55,2619.3,2619.1,3.81809651]
[1750081221716,0.55,2619.3,2619.1,3.81803155]
[1750081222013,0.7896,2618.9,2618.8,1.795]
[1750081222220,0.7896,2618.9,2618.8,8.351]
[1750081222221,1.3396,2618.9,2618.8,8.351]
[1750081222510,1.3396,2618.9,2618.8,12.16954284]
[1750081222709,1.3396,2618.9,2618.8,8.351]
[1750081223016,1.3396,2618.9,2618.8,12.16954284]
[1750081223332,0.1904,2619.2,2618.8,11.04991042]
[1750081223491,0.55,2619.1,2618.9,3.81832517]
[1750081223712,0.1904,2618.9,2618.8,1.795]
[1750081223907,0.1904,2618.9,2618.8,12.17046256]
[1750081224142,0.55,2619.1,2619.0,3.81825124]
[1750081224297,0.55,2619.1,2619.0,10.37525124]
[1750081224719,0.7989,2619.4,2619.0,10.37525124]
[1750081224720,1.3489,2619.4,2619.3,3.81781391]
[1750081225037,1.3489,2619.4,2619.3,10.38281391]
[1750081225597,1.3489,2619.4,2619.3,6.565]
[1750081225795,10.55,2619.1,2618.7,3.81868866]
[1750081226019,0.55,2618.9,2618.8,3.8184449]
[1750081226262,0.55,2618.9,2618.6,11.001]
[1750081226553,0.55,2618.9,2618.7,6.562]
[1750081226998,0.55,2618.9,2618.6,11.001]
[1750081227311,0.55,2618.9,2618.5,3.81888281]
[1750081227312,1.334,2618.6,2618.5,6.56]
[1750081227510,0.55,2618.5,2618.3,1.81]
[1750081227819,9.93897119,2618.5,2618.3,1.81]
[1750081228018,0.55,2618.3,2618.2,6.561]
[1750081228235,0.55,2618.3,2618.2,10.37941792]
[1750081228419,0.55,2618.5,2618.4,3.81912618]
[1750081228597,0.55,2618.5,2618.4,10.37712618]
[1750081229721,0.55,2618.5,2618.4,3.81912618]
[1750081229932,0.55,2618.5,2618.4,10.39712618]
[1750081230119,0.55,2618.5,2618.4,10.40012618]
[1750081230323,0.55,2618.5,2618.4,6.581]
[1750081230524,0.55,2618.5,2617.4,3.82045718]
[1750081230724,1.62229712,2618.5,2617.7,3.82011978]
[1750081230910,11.62229712,2618.5,2618.1,3.81952704]
[1750081231112,1.8354491,2618.5,2618.2,8.389]
[1750081231317,1.62229712,2618.5,2618.2,8.389]
[1750081231715,1.62229712,2618.5,2618.4,3.81912618]
[1750081231955,40.0,2618.5,2618.4,10.39612618]
[1750081232306,0.8,2618.9,2618.8,3.81843513]
[1750081232714,13.81861503,2618.8,2618.4,1.81]
[1750081232903,0.55,2618.5,2618.4,6.575]
[1750081233130,0.55,2618.5,2617.9,5.62972024]
[1750081233316,11.01341357,2618.6,2617.9,5.62972024]
[1750081233317,0.55,2618.1,2617.9,12.21172024]
[1750081233840,0.55,2618.1,2617.9,12.21178788]
[1750081234046,0.55,2618.1,2618.0,3.8197097]
[1750081234249,5.36528406,2617.9,2617.5,11.001]
[1750081234445,10.55,2617.6,2617.5,14.82142504]
[1750081234647,0.55,2617.6,2617.5,14.82142504]
[1750081235347,0.55,2617.6,2617.5,14.82143935]
[1750081236050,0.7404,2617.6,2617.5,21.40043935]
[1750081236948,0.7642,2618.3,2617.6,3.82029289]
[1750081237171,0.7642,2618.3,2618.2,3.81941792]
[1750081237331,0.7649,2618.6,2618.5,3.81898033]
[1750081237655,1.3149,2618.6,2618.5,10.40098033]
[1750081237868,0.1904,2618.6,2618.5,10.40098033]
[1750081238632,0.1904,2618.6,2618.5,12.21598033]
[1750081239241,0.1904,2618.6,2618.5,3.81898033]
[1750081239429,0.1904,2618.6,2618.5,12.21598033]
[1750081242078,0.55,2619.0,2618.9,3.81839703]
[1750081242223,0.55,2619.0,2618.9,10.39539703]
[1750081244872,0.55,2619.0,2618.9,3.81839703]
[1750081245036,0.55,2619.0,2618.9,12.19939703]
[1750081245237,0.55,2619.0,2618.8,1.81]
[1750081245238,0.7404,2618.9,2618.8,1.81]
[1750081245441,0.55,2618.9,2618.7,3.8186499]
[1750081245776,1.3143,2618.7,2618.5,3.81897639]
[1750081245959,1.3143,2618.7,2618.6,6.569]
[1750081246458,0.55,2618.5,2618.4,5.62907053]
[1750081246760,0.55,2618.5,2618.4,1.81]
[1750081246961,0.55,2618.5,2618.4,8.376]
[1750081247659,23.75795152,2618.5,2617.9,3.8198062]
[1750081247832,0.55,2618.0,2617.9,10.3868556]
[1750081248258,11.3213,2618.4,2618.1,3.81946069]
[1750081248457,0.55,2618.0,2617.8,3.81994548]
[1750081248663,0.55,2618.0,2617.9,10.3867774]
[1750081248957,13.5717716,2618.4,2617.9,10.3867774]
[1750081248958,1.3213,2618.4,2618.3,3.81927204]
[1750081249134,0.7404,2618.3,2617.0,3.82116804]
[1750081249339,0.55,2618.1,2618.0,3.8197097]
[1750081249561,0.55,2618.1,2618.0,10.3827097]
[1750081249861,0.55,2618.1,2618.0,6.563]
[1750081250372,0.55,2618.1,2617.6,1.81]
[1750081250577,0.55,2618.1,2617.9,3.81984677]
[1750081250780,0.55,2618.1,2618.0,10.3817097]
[1750081250924,0.7636163,2618.1,2618.0,10.3817097]
[1750081251128,0.7636153,2618.1,2617.6,1.81]
[1750081251359,20.75457119,2617.9,2617.6,10.38517874]
[1750081251544,20.75457119,2617.9,2617.5,16.63142588]
[1750081251545,0.7404,2617.6,2617.5,19.379]
[1750081251747,0.7404,2617.6,2617.5,12.811]
[1750081251921,0.7404,2617.6,2617.5,23.19843935]
[1750081252426,0.7404,2617.6,2617.5,12.811]
[1750081252653,0.7404,2617.6,2617.5,23.19443935]
[1750081252863,0.7404,2617.6,2617.5,11.001]
[1750081253066,0.7404,2617.6,2617.5,17.564]
[1750081253067,1.21780962,2617.6,2617.5,17.564]